[Event "Early-Titled-Tuesday-Blitz-January-30-2024"]
[Site "Chess.com"]
[Date "2024.01.30"]
[Round "8"]
[White "SirGerhard"]
[Black "Mesa_1"]
[Result "1-0"]
[WhiteElo "2753"]
[BlackElo "2566"]
[TimeControl "180+1"]
[EndTime "9:31:07 PST"]
[Termination "SirGerhard won by checkmate"]

1. d4 {[%clk 0:02:58.4]} 1... d5 {[%clk 0:02:59.4]} 2. c4 {[%clk 0:02:58.5]}
2... e6 {[%clk 0:03:00]} 3. Nf3 {[%clk 0:02:58.6]} 3... Nf6 {[%clk 0:03:00.5]}
4. Nc3 {[%clk 0:02:58.1]} 4... c5 {[%clk 0:03:00.8]} 5. cxd5 {[%clk 0:02:58.1]}
5... cxd4 {[%clk 0:03:01.1]} 6. Nxd4 {[%clk 0:02:57.9]} 6... Nxd5 {[%clk
0:03:00.4]} 7. Bd2 {[%clk 0:02:58]} 7... Be7 {[%clk 0:03:00.1]} 8. e3 {[%clk
0:02:58.4]} 8... O-O {[%clk 0:03:00.6]} 9. Bc4 {[%clk 0:02:58.2]} 9... Nf6
{[%clk 0:02:59.6]} 10. O-O {[%clk 0:02:57.7]} 10... e5 {[%clk 0:02:59.8]} 11.
Nf3 {[%clk 0:02:57.2]} 11... Nc6 {[%clk 0:03:00.5]} 12. h3 {[%clk 0:02:51.5]}
12... e4 {[%clk 0:02:57.9]} 13. Nh2 {[%clk 0:02:47.9]} 13... Bd6 {[%clk
0:02:51.8]} 14. Re1 {[%clk 0:02:41.3]} 14... Bf5 {[%clk 0:02:44.3]} 15. Nf1
{[%clk 0:02:39.9]} 15... Qe7 {[%clk 0:02:36.3]} 16. Nd5 {[%clk 0:02:34.5]} 16...
Nxd5 {[%clk 0:02:33.7]} 17. Bxd5 {[%clk 0:02:34.8]} 17... Rad8 {[%clk
0:02:34.1]} 18. Bc3 {[%clk 0:02:34.5]} 18... Be5 {[%clk 0:02:08.1]} 19. Qb3
{[%clk 0:02:34]} 19... Bxc3 {[%clk 0:02:01.1]} 20. bxc3 {[%clk 0:02:34.4]} 20...
Rd6 {[%clk 0:01:29.4]} 21. Ng3 {[%clk 0:02:28.4]} 21... Bg6 {[%clk 0:01:30]} 22.
c4 {[%clk 0:02:28.4]} 22... h5 {[%clk 0:01:23.7]} 23. Ne2 {[%clk 0:02:26.8]}
23... Ne5 {[%clk 0:01:03.7]} 24. Nf4 {[%clk 0:02:22]} 24... b6 {[%clk
0:00:54.2]} 25. a4 {[%clk 0:02:15.1]} 25... h4 {[%clk 0:00:50.5]} 26. a5 {[%clk
0:02:14.5]} 26... Bh7 {[%clk 0:00:48.5]} 27. axb6 {[%clk 0:02:14]} 27... axb6
{[%clk 0:00:48.7]} 28. Qc3 {[%clk 0:02:06.9]} 28... g5 {[%clk 0:00:48.4]} 29.
Ra7 {[%clk 0:01:53.6]} 29... Rd7 {[%clk 0:00:29.8]} 30. Rxd7 {[%clk 0:01:51.6]}
30... Nxd7 {[%clk 0:00:30.7]} 31. Nh5 {[%clk 0:01:46.1]} 31... Ne5 {[%clk
0:00:28.4]} 32. g4 {[%clk 0:01:15.7]} 32... Bg6 {[%clk 0:00:21.3]} 33. Rb1
{[%clk 0:01:14.3]} 33... Bxh5 {[%clk 0:00:17.7]} 34. gxh5 {[%clk 0:01:14.7]}
34... Qf6 {[%clk 0:00:17.6]} 35. Qc2 {[%clk 0:00:43.6]} 35... Nf3+ {[%clk
0:00:16.2]} 36. Kg2 {[%clk 0:00:44.1]} 36... g4 {[%clk 0:00:15.7]} 37. Qxe4
{[%clk 0:00:41]} 37... gxh3+ {[%clk 0:00:16.2]} 38. Kh1 {[%clk 0:00:41.3]} 38...
Ng5 {[%clk 0:00:16.9]} 39. Qxh4 {[%clk 0:00:38]} 39... Kh8 {[%clk 0:00:14.7]}
40. f4 {[%clk 0:00:37.6]} 40... Qf5 {[%clk 0:00:13.3]} 41. Rxb6 {[%clk 0:00:26]}
41... Ne4 {[%clk 0:00:08.9]} 42. Kh2 {[%clk 0:00:24.1]} 42... Rg8 {[%clk
0:00:08.3]} 43. Qxh3 {[%clk 0:00:23.8]} 43... Qxh3+ {[%clk 0:00:02.2]} 44. Kxh3
{[%clk 0:00:24]} 44... Nf2+ {[%clk 0:00:02.9]} 45. Kh2 {[%clk 0:00:23.2]} 45...
Nd1 {[%clk 0:00:03.8]} 46. e4 {[%clk 0:00:18.7]} 46... Ne3 {[%clk 0:00:03.1]}
47. e5 {[%clk 0:00:18.9]} 47... Rg4 {[%clk 0:00:02.9]} 48. Rf6 {[%clk
0:00:17.1]} 48... Nf1+ {[%clk 0:00:01.2]} 49. Kh3 {[%clk 0:00:16.2]} 49... Rg3+
{[%clk 0:00:02.1]} 50. Kh4 {[%clk 0:00:16.5]} 50... Rg7 {[%clk 0:00:02.8]} 51.
Rxf7 {[%clk 0:00:15.8]} 51... Rg1 {[%clk 0:00:03]} 52. Rf8+ {[%clk 0:00:15.6]}
52... Kg7 {[%clk 0:00:02.9]} 53. h6+ {[%clk 0:00:13.3]} 53... Kxh6 {[%clk
0:00:03.8]} 54. Rh8+ {[%clk 0:00:13.1]} 54... Kg7 {[%clk 0:00:03.9]} 55. Rg8+
{[%clk 0:00:13.8]} 55... Kh6 {[%clk 0:00:03.7]} 56. Rxg1 {[%clk 0:00:14.7]}
56... Ne3 {[%clk 0:00:04.3]} 57. e6 {[%clk 0:00:10.9]} 57... Nf5+ {[%clk
0:00:03.6]} 58. Kh3 {[%clk 0:00:11.5]} 58... Nd4 {[%clk 0:00:03.3]} 59. c5
{[%clk 0:00:10.2]} 59... Nf5 {[%clk 0:00:03.7]} 60. c6 {[%clk 0:00:09.4]} 60...
Nd6 {[%clk 0:00:04.3]} 61. c7 {[%clk 0:00:09]} 61... Nf5 {[%clk 0:00:04.8]} 62.
c8=Q {[%clk 0:00:09.1]} 62... Kh5 {[%clk 0:00:02.1]} 63. Qh8+ {[%clk 0:00:08.6]}
63... Nh6 {[%clk 0:00:02.7]} 64. Bf3# {[%clk 0:00:08.8]} 1-0

[Event "Early-Titled-Tuesday-Blitz-January-30-2024"]
[Site "Chess.com"]
[Date "2024.01.30"]
[Round "8"]
[White "Ducke13"]
[Black "themind1hunter"]
[Result "1/2-1/2"]
[WhiteElo "2314"]
[BlackElo "2541"]
[TimeControl "180+1"]
[EndTime "9:31:07 PST"]
[Termination "Game drawn - insufficient material"]

1. d4 {[%clk 0:02:49.6]} 1... Nf6 {[%clk 0:02:57.4]} 2. g3 {[%clk 0:02:47.8]}
2... d5 {[%clk 0:02:55.2]} 3. Nf3 {[%clk 0:02:47.4]} 3... g6 {[%clk 0:02:49.6]}
4. Bg2 {[%clk 0:02:45.7]} 4... Bg7 {[%clk 0:02:48.3]} 5. c4 {[%clk 0:02:46.6]}
5... dxc4 {[%clk 0:02:47.3]} 6. O-O {[%clk 0:02:43.7]} 6... O-O {[%clk
0:02:47.4]} 7. Na3 {[%clk 0:02:43.5]} 7... Nc6 {[%clk 0:02:20.1]} 8. Nxc4 {[%clk
0:02:39.7]} 8... Bf5 {[%clk 0:02:07.2]} 9. b3 {[%clk 0:02:23.7]} 9... Ne4 {[%clk
0:01:59.1]} 10. Bb2 {[%clk 0:02:22.2]} 10... a5 {[%clk 0:01:43.2]} 11. Nh4
{[%clk 0:01:52.1]} 11... Bxd4 {[%clk 0:01:33.2]} 12. Nxf5 {[%clk 0:01:48.9]}
12... gxf5 {[%clk 0:01:26.3]} 13. Qb1 {[%clk 0:01:25.3]} 13... Bxb2 {[%clk
0:01:09.9]} 14. Qxb2 {[%clk 0:01:21.1]} 14... Qd4 {[%clk 0:01:08.6]} 15. Rad1
{[%clk 0:00:46.9]} 15... Qxb2 {[%clk 0:01:05.2]} 16. Nxb2 {[%clk 0:00:47.8]}
16... Rfd8 {[%clk 0:01:01.8]} 17. Nd3 {[%clk 0:00:37.2]} 17... Nc3 {[%clk
0:01:00.6]} 18. Rd2 {[%clk 0:00:33.6]} 18... e6 {[%clk 0:01:00.5]} 19. Bxc6
{[%clk 0:00:30]} 19... bxc6 {[%clk 0:01:00.4]} 20. Rc1 {[%clk 0:00:29.4]} 20...
Nxe2+ {[%clk 0:00:53.3]} 21. Rxe2 {[%clk 0:00:30.3]} 21... Rxd3 {[%clk
0:00:53.4]} 22. Rxc6 {[%clk 0:00:29.8]} 22... Ra7 {[%clk 0:00:42.1]} 23. Rec2
{[%clk 0:00:29.1]} 23... Rd7 {[%clk 0:00:39.9]} 24. R2c4 {[%clk 0:00:28.6]}
24... Kg7 {[%clk 0:00:39.8]} 25. Ra4 {[%clk 0:00:28.3]} 25... Rd5 {[%clk
0:00:34.4]} 26. Rac4 {[%clk 0:00:26.5]} 26... Rd2 {[%clk 0:00:32.3]} 27. Rc2
{[%clk 0:00:20.9]} 27... Rxc2 {[%clk 0:00:30.7]} 28. Rxc2 {[%clk 0:00:21.8]}
28... Kf6 {[%clk 0:00:30.3]} 29. f4 {[%clk 0:00:20.8]} 29... Ke7 {[%clk
0:00:30.3]} 30. Rd2 {[%clk 0:00:15.3]} 30... a4 {[%clk 0:00:29]} 31. Kf2 {[%clk
0:00:13.1]} 31... axb3 {[%clk 0:00:28.6]} 32. axb3 {[%clk 0:00:13.3]} 32... Rb7
{[%clk 0:00:27.3]} 33. Rd3 {[%clk 0:00:12.2]} 33... c5 {[%clk 0:00:25]} 34. Ke3
{[%clk 0:00:12.4]} 34... Ra7 {[%clk 0:00:19.1]} 35. h4 {[%clk 0:00:10.9]} 35...
Ra1 {[%clk 0:00:18.6]} 36. Kd2 {[%clk 0:00:10.2]} 36... f6 {[%clk 0:00:13.9]}
37. Kc3 {[%clk 0:00:09.8]} 37... Rc1+ {[%clk 0:00:14]} 38. Kb2 {[%clk
0:00:10.2]} 38... Re1 {[%clk 0:00:12.9]} 39. Kc3 {[%clk 0:00:09.9]} 39... Re4
{[%clk 0:00:13.6]} 40. Kb2 {[%clk 0:00:04.8]} 40... e5 {[%clk 0:00:13.2]} 41.
Rf3 {[%clk 0:00:03.1]} 41... Ke6 {[%clk 0:00:12.8]} 42. Kc3 {[%clk 0:00:03.2]}
42... h5 {[%clk 0:00:10.3]} 43. Kd3 {[%clk 0:00:03.3]} 43... Rb4 {[%clk
0:00:09.4]} 44. Kc3 {[%clk 0:00:03.6]} 44... Kd5 {[%clk 0:00:08.7]} 45. Rd3+
{[%clk 0:00:03.7]} 45... Ke4 {[%clk 0:00:08.6]} 46. Rd6 {[%clk 0:00:03.3]} 46...
exf4 {[%clk 0:00:09]} 47. gxf4 {[%clk 0:00:03.5]} 47... Kxf4 {[%clk 0:00:09.6]}
48. Rxf6 {[%clk 0:00:04.2]} 48... Kg4 {[%clk 0:00:09.3]} 49. Rc6 {[%clk
0:00:04.5]} 49... Kxh4 {[%clk 0:00:08.3]} 50. Rxc5 {[%clk 0:00:05.1]} 50... Rf4
{[%clk 0:00:08.6]} 51. b4 {[%clk 0:00:05.2]} 51... Kg3 {[%clk 0:00:08.4]} 52. b5
{[%clk 0:00:05.6]} 52... Rf3+ {[%clk 0:00:05.8]} 53. Kc4 {[%clk 0:00:05.5]}
53... h4 {[%clk 0:00:06.7]} 54. b6 {[%clk 0:00:05.4]} 54... Re3 {[%clk
0:00:04.5]} 55. Rxf5 {[%clk 0:00:04.7]} 55... Re8 {[%clk 0:00:04.5]} 56. Rh5
{[%clk 0:00:04.7]} 56... h3 {[%clk 0:00:04.9]} 57. Kc5 {[%clk 0:00:04.6]} 57...
h2 {[%clk 0:00:05.3]} 58. b7 {[%clk 0:00:04.8]} 58... Kg2 {[%clk 0:00:05.8]} 59.
Kc6 {[%clk 0:00:05]} 59... h1=Q {[%clk 0:00:06.2]} 60. Rxh1 {[%clk 0:00:05]}
60... Kxh1 {[%clk 0:00:07.1]} 61. Kc7 {[%clk 0:00:05.2]} 61... Re7+ {[%clk
0:00:07.7]} 62. Kc8 {[%clk 0:00:05.5]} 62... Rxb7 {[%clk 0:00:08.6]} 63. Kxb7
{[%clk 0:00:06.2]} 1/2-1/2

[Event "Early-Titled-Tuesday-Blitz-January-30-2024"]
[Site "Chess.com"]
[Date "2024.01.30"]
[Round "8"]
[White "Glidzhian_Gor"]
[Black "Onthequiet"]
[Result "1/2-1/2"]
[WhiteElo "2570"]
[BlackElo "2412"]
[TimeControl "180+1"]
[EndTime "9:31:08 PST"]
[Termination "Game drawn by stalemate"]

1. e4 {[%clk 0:03:00.9]} 1... c6 {[%clk 0:02:55.3]} 2. d4 {[%clk 0:03:01]} 2...
d5 {[%clk 0:02:55.6]} 3. Nc3 {[%clk 0:03:01.9]} 3... dxe4 {[%clk 0:02:55.5]} 4.
Nxe4 {[%clk 0:03:02.8]} 4... Nf6 {[%clk 0:02:55.4]} 5. Ng5 {[%clk 0:03:03.1]}
5... h6 {[%clk 0:02:54.7]} 6. Nxf7 {[%clk 0:03:03.6]} 6... Kxf7 {[%clk
0:02:54.3]} 7. Nf3 {[%clk 0:03:04.3]} 7... Bf5 {[%clk 0:02:23.4]} 8. Bc4+ {[%clk
0:03:00.7]} 8... e6 {[%clk 0:02:21.8]} 9. Ne5+ {[%clk 0:03:01.4]} 9... Ke8
{[%clk 0:02:17.6]} 10. g4 {[%clk 0:03:01.6]} 10... Be4 {[%clk 0:02:15.6]} 11. f3
{[%clk 0:03:02.3]} 11... Bd5 {[%clk 0:02:15.3]} 12. Bd3 {[%clk 0:03:03.1]} 12...
Bd6 {[%clk 0:02:09.6]} 13. c4 {[%clk 0:03:00.1]} 13... Bxe5 {[%clk 0:01:53.5]}
14. dxe5 {[%clk 0:02:58.3]} 14... Nxg4 {[%clk 0:01:51.9]} 15. O-O {[%clk
0:01:57.2]} 15... Nxe5 {[%clk 0:01:46.9]} 16. cxd5 {[%clk 0:01:57]} 16... Qxd5
{[%clk 0:01:41.8]} 17. Be4 {[%clk 0:01:55.4]} 17... Qxd1 {[%clk 0:01:36]} 18.
Rxd1 {[%clk 0:01:56.3]} 18... Nbd7 {[%clk 0:01:34.9]} 19. Bf4 {[%clk 0:01:55.4]}
19... Rf8 {[%clk 0:01:26.7]} 20. Bg3 {[%clk 0:01:50.7]} 20... Nxf3+ {[%clk
0:01:18.6]} 21. Kg2 {[%clk 0:01:50.9]} 21... Ng5 {[%clk 0:01:13.5]} 22. Bg6+
{[%clk 0:01:49.7]} 22... Ke7 {[%clk 0:01:09]} 23. Bd6+ {[%clk 0:01:49.3]} 23...
Kf6 {[%clk 0:01:09.1]} 24. Bxf8 {[%clk 0:01:49.1]} 24... Nxf8 {[%clk 0:01:09.1]}
25. Bh5 {[%clk 0:01:47.6]} 25... Ne4 {[%clk 0:01:00]} 26. Rf1+ {[%clk
0:01:44.8]} 26... Kg5 {[%clk 0:00:58.7]} 27. Be2 {[%clk 0:01:41.9]} 27... Ng6
{[%clk 0:00:54.4]} 28. Rad1 {[%clk 0:01:33.7]} 28... Nf4+ {[%clk 0:00:51.1]} 29.
Kf3 {[%clk 0:01:33.6]} 29... Nf6 {[%clk 0:00:27]} 30. h4+ {[%clk 0:01:21.8]}
30... Kf5 {[%clk 0:00:26.2]} 31. Ke3 {[%clk 0:00:34.9]} 31... g5 {[%clk
0:00:25.8]} 32. Bc4 {[%clk 0:00:22.2]} 32... Nd5+ {[%clk 0:00:22.9]} 33. Bxd5
{[%clk 0:00:18.2]} 33... exd5 {[%clk 0:00:23.8]} 34. hxg5 {[%clk 0:00:18.7]}
34... hxg5 {[%clk 0:00:22.9]} 35. Kd2 {[%clk 0:00:19.2]} 35... Re8 {[%clk
0:00:22.3]} 36. Rf2 {[%clk 0:00:19.6]} 36... Re4 {[%clk 0:00:20.5]} 37. Rdf1
{[%clk 0:00:20.2]} 37... b5 {[%clk 0:00:19.7]} 38. Rg1 {[%clk 0:00:20.9]} 38...
a5 {[%clk 0:00:18.4]} 39. b3 {[%clk 0:00:20.9]} 39... a4 {[%clk 0:00:17.9]} 40.
Rh2 {[%clk 0:00:21.5]} 40... a3 {[%clk 0:00:16.4]} 41. Rc1 {[%clk 0:00:19.6]}
41... Re6 {[%clk 0:00:14.7]} 42. Rf1 {[%clk 0:00:19.5]} 42... c5 {[%clk
0:00:13.9]} 43. Rc1 {[%clk 0:00:19.7]} 43... c4 {[%clk 0:00:14]} 44. bxc4 {[%clk
0:00:20.3]} 44... dxc4 {[%clk 0:00:14.4]} 45. Rf1 {[%clk 0:00:19.6]} 45... b4
{[%clk 0:00:13.3]} 46. Rh8 {[%clk 0:00:18.5]} 46... Re2+ {[%clk 0:00:12.6]} 47.
Kc1 {[%clk 0:00:18.6]} 47... Rxa2 {[%clk 0:00:13.2]} 48. Rf8+ {[%clk 0:00:19.5]}
48... Ke4 {[%clk 0:00:12.9]} 49. Re1+ {[%clk 0:00:19.7]} 49... Kd3 {[%clk
0:00:13]} 50. Kb1 {[%clk 0:00:18.4]} 50... Rb2+ {[%clk 0:00:12.3]} 51. Ka1
{[%clk 0:00:18.9]} 51... Kc3 {[%clk 0:00:12.4]} 52. Rxf4 {[%clk 0:00:13.9]}
52... gxf4 {[%clk 0:00:11.9]} 53. Re3+ {[%clk 0:00:14.6]} 53... Kd4 {[%clk
0:00:11.7]} 54. Rd3+ {[%clk 0:00:13.9]} 54... Ke4 {[%clk 0:00:08.9]} 55. Re3+
{[%clk 0:00:14.4]} 55... Kf5 {[%clk 0:00:09.5]} 56. Re5+ {[%clk 0:00:15]} 56...
Kg4 {[%clk 0:00:09.4]} 57. Rg5+ {[%clk 0:00:15.5]} 57... Kf3 {[%clk 0:00:09.9]}
58. Rg3+ {[%clk 0:00:16]} 58... Kf2 {[%clk 0:00:10.1]} 59. Rf3+ {[%clk
0:00:16.3]} 59... Ke2 {[%clk 0:00:10.3]} 60. Rf2+ {[%clk 0:00:16.8]} 60... Kd3
{[%clk 0:00:10]} 61. Rf3+ {[%clk 0:00:17.3]} 61... Kc2 {[%clk 0:00:09.7]} 62.
Rc3+ {[%clk 0:00:17.2]} 62... Kd2 {[%clk 0:00:09.3]} 63. Rd3+ {[%clk 0:00:17.5]}
63... Ke2 {[%clk 0:00:09.3]} 64. Re3+ {[%clk 0:00:18.1]} 64... Kd1 {[%clk
0:00:09.7]} 65. Re1+ {[%clk 0:00:18.4]} 65... Kc2 {[%clk 0:00:09.4]} 66. Rc1+
{[%clk 0:00:18.6]} 66... Kb3 {[%clk 0:00:09.9]} 67. Rc3+ {[%clk 0:00:19]} 67...
Ka4 {[%clk 0:00:10]} 68. Rxa3+ {[%clk 0:00:19.5]} 68... bxa3 {[%clk 0:00:05.7]}
1/2-1/2

[Event "Early-Titled-Tuesday-Blitz-January-30-2024"]
[Site "Chess.com"]
[Date "2024.01.30"]
[Round "8"]
[White "GeorgiosSouleidis"]
[Black "emeli_chess"]
[Result "1-0"]
[WhiteElo "2647"]
[BlackElo "2474"]
[TimeControl "180+1"]
[EndTime "9:31:11 PST"]
[Termination "GeorgiosSouleidis won by checkmate"]

1. e4 {[%clk 0:03:00.9]} 1... e5 {[%clk 0:02:59.3]} 2. Nf3 {[%clk 0:03:00.2]}
2... Nc6 {[%clk 0:02:59.5]} 3. Bc4 {[%clk 0:03:00.4]} 3... Nf6 {[%clk
0:02:59.2]} 4. d3 {[%clk 0:03:00.7]} 4... Be7 {[%clk 0:02:58.8]} 5. O-O {[%clk
0:02:59]} 5... O-O {[%clk 0:02:58.3]} 6. Nc3 {[%clk 0:02:57.5]} 6... d6 {[%clk
0:02:58.3]} 7. a4 {[%clk 0:02:57.8]} 7... a5 {[%clk 0:02:57.5]} 8. h3 {[%clk
0:02:54.4]} 8... Be6 {[%clk 0:02:57.1]} 9. Nd5 {[%clk 0:02:54]} 9... Bxd5 {[%clk
0:02:57.3]} 10. exd5 {[%clk 0:02:54.4]} 10... Nd4 {[%clk 0:02:57.6]} 11. c3
{[%clk 0:02:34]} 11... Nxf3+ {[%clk 0:02:53.8]} 12. Qxf3 {[%clk 0:02:34.9]}
12... Nd7 {[%clk 0:02:52.4]} 13. Qg3 {[%clk 0:02:12.1]} 13... Bh4 {[%clk
0:02:45.9]} 14. Qe3 {[%clk 0:02:12.1]} 14... f5 {[%clk 0:02:41.8]} 15. f4 {[%clk
0:02:12.3]} 15... exf4 {[%clk 0:02:11.3]} 16. Qe6+ {[%clk 0:02:06]} 16... Kh8
{[%clk 0:02:10.6]} 17. Bxf4 {[%clk 0:02:06.6]} 17... Nc5 {[%clk 0:01:59.4]} 18.
Qe2 {[%clk 0:02:04.8]} 18... Bg5 {[%clk 0:01:54.8]} 19. Qd2 {[%clk 0:01:27.4]}
19... Bxf4 {[%clk 0:01:53.4]} 20. Qxf4 {[%clk 0:01:28.3]} 20... Qf6 {[%clk
0:01:48.9]} 21. Bb5 {[%clk 0:01:18.6]} 21... c6 {[%clk 0:01:07.3]} 22. dxc6
{[%clk 0:01:17]} 22... bxc6 {[%clk 0:01:07.3]} 23. Bxc6 {[%clk 0:01:15.3]} 23...
Nxd3 {[%clk 0:01:07.2]} 24. Qd2 {[%clk 0:01:08]} 24... Rac8 {[%clk 0:01:05.9]}
25. Bd7 {[%clk 0:01:01.6]} 25... Rc7 {[%clk 0:01:03.7]} 26. Rxf5 {[%clk
0:00:58.7]} 26... Qe7 {[%clk 0:00:59.5]} 27. Rxf8+ {[%clk 0:00:58.6]} 27... Qxf8
{[%clk 0:00:59.7]} 28. Qxd3 {[%clk 0:00:58.5]} 28... Rxd7 {[%clk 0:00:59.4]} 29.
Rf1 {[%clk 0:00:55.4]} 29... Qd8 {[%clk 0:00:51.4]} 30. Qd5 {[%clk 0:00:51.5]}
30... h6 {[%clk 0:00:50]} 31. b4 {[%clk 0:00:48.4]} 31... axb4 {[%clk
0:00:49.2]} 32. cxb4 {[%clk 0:00:49.3]} 32... Qb6+ {[%clk 0:00:48.4]} 33. Kh2
{[%clk 0:00:43.7]} 33... Rd8 {[%clk 0:00:45.5]} 34. b5 {[%clk 0:00:42.3]} 34...
Qa5 {[%clk 0:00:44.7]} 35. Rf4 {[%clk 0:00:40.6]} 35... Qb6 {[%clk 0:00:31.5]}
36. Qe6 {[%clk 0:00:35.1]} 36... Ra8 {[%clk 0:00:28.4]} 37. Qe7 {[%clk
0:00:26.3]} 37... d5 {[%clk 0:00:23.5]} 38. Rf8+ {[%clk 0:00:24.5]} 38... Rxf8
{[%clk 0:00:23.2]} 39. Qxf8+ {[%clk 0:00:25.4]} 39... Kh7 {[%clk 0:00:23.4]} 40.
Qf5+ {[%clk 0:00:25.6]} 40... Kh8 {[%clk 0:00:23.6]} 41. Qxd5 {[%clk 0:00:25.2]}
41... Qc7+ {[%clk 0:00:23.9]} 42. g3 {[%clk 0:00:25.1]} 42... Qc2+ {[%clk
0:00:23.7]} 43. Qg2 {[%clk 0:00:24.9]} 43... Qxa4 {[%clk 0:00:23.8]} 44. Qb2
{[%clk 0:00:20.8]} 44... Qa7 {[%clk 0:00:22.4]} 45. b6 {[%clk 0:00:20.7]} 45...
Qb7 {[%clk 0:00:22.7]} 46. h4 {[%clk 0:00:21.2]} 46... h5 {[%clk 0:00:19.8]} 47.
Qd4 {[%clk 0:00:20]} 47... Kh7 {[%clk 0:00:19.1]} 48. Qc5 {[%clk 0:00:19]} 48...
Qf3 {[%clk 0:00:16.2]} 49. Qc2+ {[%clk 0:00:12.8]} 49... g6 {[%clk 0:00:14.8]}
50. Qg2 {[%clk 0:00:13.7]} 50... Qb3 {[%clk 0:00:13.8]} 51. b7 {[%clk
0:00:13.9]} 51... Qb6 {[%clk 0:00:12.1]} 52. Qe4 {[%clk 0:00:11.6]} 52... Qf2+
{[%clk 0:00:11.8]} 53. Kh3 {[%clk 0:00:10.3]} 53... Qf1+ {[%clk 0:00:09.4]} 54.
Qg2 {[%clk 0:00:10.5]} 54... Qb5 {[%clk 0:00:09.4]} 55. Kh2 {[%clk 0:00:09.7]}
55... Qb6 {[%clk 0:00:09]} 56. Qf3 {[%clk 0:00:07.9]} 56... Qb2+ {[%clk
0:00:06.9]} 57. Kh3 {[%clk 0:00:08.4]} 57... Qb6 {[%clk 0:00:06.5]} 58. Qf7+
{[%clk 0:00:08.3]} 58... Kh6 {[%clk 0:00:06.3]} 59. Qf8+ {[%clk 0:00:08.5]}
59... Kh7 {[%clk 0:00:06.3]} 60. Qe7+ {[%clk 0:00:08.4]} 60... Kh6 {[%clk
0:00:06.4]} 61. Qf8+ {[%clk 0:00:07.9]} 61... Kh7 {[%clk 0:00:06.5]} 62. b8=Q
{[%clk 0:00:08.8]} 62... Qg1 {[%clk 0:00:05.7]} 63. Qh8# {[%clk 0:00:06.4]} 1-0

[Event "Early-Titled-Tuesday-Blitz-January-30-2024"]
[Site "Chess.com"]
[Date "2024.01.30"]
[Round "8"]
[White "stollenmonster"]
[Black "Makswolf200817"]
[Result "0-1"]
[WhiteElo "2895"]
[BlackElo "2700"]
[TimeControl "180+1"]
[EndTime "9:31:15 PST"]
[Termination "Makswolf200817 won by resignation"]

1. e4 {[%clk 0:03:00.9]} 1... c5 {[%clk 0:02:59.3]} 2. Nf3 {[%clk 0:03:00.1]}
2... d6 {[%clk 0:02:59.7]} 3. d4 {[%clk 0:03:00]} 3... cxd4 {[%clk 0:03:00.4]}
4. Nxd4 {[%clk 0:03:00.9]} 4... Nf6 {[%clk 0:03:01]} 5. Nc3 {[%clk 0:03:01.5]}
5... a6 {[%clk 0:03:01.7]} 6. a4 {[%clk 0:03:01.2]} 6... e5 {[%clk 0:02:57.9]}
7. Nde2 {[%clk 0:03:01.5]} 7... Be7 {[%clk 0:02:56.7]} 8. g3 {[%clk 0:03:01.9]}
8... O-O {[%clk 0:02:50.2]} 9. Bg2 {[%clk 0:03:01.5]} 9... Be6 {[%clk
0:02:47.7]} 10. h3 {[%clk 0:03:01.4]} 10... Nbd7 {[%clk 0:02:45.4]} 11. O-O
{[%clk 0:02:59.3]} 11... h5 {[%clk 0:02:34.1]} 12. a5 {[%clk 0:02:57.6]} 12...
Qc7 {[%clk 0:02:32.6]} 13. Be3 {[%clk 0:02:55.7]} 13... Rfc8 {[%clk 0:02:29.8]}
14. Qd2 {[%clk 0:02:40.9]} 14... b6 {[%clk 0:02:27.3]} 15. axb6 {[%clk
0:02:40.2]} 15... Nxb6 {[%clk 0:02:27.5]} 16. b3 {[%clk 0:02:39.9]} 16... Qc6
{[%clk 0:02:15.2]} 17. Rfd1 {[%clk 0:02:36.1]} 17... a5 {[%clk 0:02:15]} 18. Nd5
{[%clk 0:02:36.4]} 18... Bxd5 {[%clk 0:02:01.3]} 19. exd5 {[%clk 0:02:36.4]}
19... Qc7 {[%clk 0:02:01.9]} 20. Rxa5 {[%clk 0:02:33.1]} 20... Rxa5 {[%clk
0:01:57.3]} 21. Qxa5 {[%clk 0:02:32.3]} 21... Qxc2 {[%clk 0:01:57.5]} 22. Rd2
{[%clk 0:02:23.4]} 22... Qb1+ {[%clk 0:01:57.2]} 23. Kh2 {[%clk 0:02:23.4]}
23... Nbd7 {[%clk 0:01:56.3]} 24. Qa4 {[%clk 0:01:33.3]} 24... Rb8 {[%clk
0:01:52.1]} 25. Qa7 {[%clk 0:01:20.2]} 25... Qxb3 {[%clk 0:01:47.6]} 26. Bg5
{[%clk 0:01:17.6]} 26... Qb6 {[%clk 0:01:42.5]} 27. Qa4 {[%clk 0:01:09.9]} 27...
Ng4+ {[%clk 0:01:25.3]} 28. hxg4 {[%clk 0:01:08.4]} 28... Bxg5 {[%clk
0:01:25.7]} 29. Rc2 {[%clk 0:00:59.2]} 29... Nf6 {[%clk 0:01:18]} 30. gxh5
{[%clk 0:00:50.4]} 30... Qxf2 {[%clk 0:01:18.2]} 31. Nf4 {[%clk 0:00:50.3]}
31... Qe3 {[%clk 0:01:06.7]} 32. Nh3 {[%clk 0:00:49.3]} 32... Bh6 {[%clk
0:00:45.6]} 33. Qc4 {[%clk 0:00:44.6]} 33... Nxh5 {[%clk 0:00:24]} 34. Qg4
{[%clk 0:00:44.6]} 34... Nf6 {[%clk 0:00:22.5]} 35. Rc8+ {[%clk 0:00:44]} 35...
Rxc8 {[%clk 0:00:22.7]} 36. Qxc8+ {[%clk 0:00:44.9]} 36... Kh7 {[%clk
0:00:23.4]} 37. Qf5+ {[%clk 0:00:45.1]} 37... Kh8 {[%clk 0:00:23.9]} 38. Qc8+
{[%clk 0:00:43.6]} 38... Ng8 {[%clk 0:00:24.2]} 39. Qf8 {[%clk 0:00:41.4]} 39...
Qb6 {[%clk 0:00:16.3]} 40. Qxf7 {[%clk 0:00:39.8]} 40... Nf6 {[%clk 0:00:16.2]}
41. Qe6 {[%clk 0:00:33.9]} 41... Qd8 {[%clk 0:00:13.8]} 42. Qf5 {[%clk
0:00:32.2]} 42... Qd7 {[%clk 0:00:13.8]} 43. Qg6 {[%clk 0:00:30.5]} 43... Ng4+
{[%clk 0:00:14]} 44. Kh1 {[%clk 0:00:30.1]} 44... Nf6 {[%clk 0:00:12.3]} 45. Nf2
{[%clk 0:00:21]} 45... Qe8 {[%clk 0:00:09]} 46. Qxe8+ {[%clk 0:00:18.7]} 46...
Nxe8 {[%clk 0:00:09.1]} 47. Ne4 {[%clk 0:00:19.6]} 47... Be3 {[%clk 0:00:09.4]}
48. Bh3 {[%clk 0:00:19.9]} 48... Nc7 {[%clk 0:00:03.8]} 49. Be6 {[%clk
0:00:18.9]} 49... Bc5 {[%clk 0:00:01.3]} 50. Kg2 {[%clk 0:00:15.4]} 50... Bb4
{[%clk 0:00:01.9]} 51. Kf3 {[%clk 0:00:15.5]} 51... g6 {[%clk 0:00:02.5]} 52.
Ng5 {[%clk 0:00:05.8]} 52... Kg7 {[%clk 0:00:02.7]} 53. Ke4 {[%clk 0:00:06.5]}
53... Kf6 {[%clk 0:00:03]} 54. Nh7+ {[%clk 0:00:06.6]} 54... Ke7 {[%clk
0:00:03.6]} 55. Bg8 {[%clk 0:00:06.8]} 55... Na6 {[%clk 0:00:03.5]} 56. Ng5
{[%clk 0:00:06.2]} 56... Be1 {[%clk 0:00:03.6]} 57. Ne6 {[%clk 0:00:05.6]} 57...
Bxg3 {[%clk 0:00:03]} 58. Bh7 {[%clk 0:00:05.5]} 58... Kf6 {[%clk 0:00:02.9]}
59. Nd8 {[%clk 0:00:04.5]} 59... Nc5+ {[%clk 0:00:02.8]} 60. Kf3 {[%clk
0:00:05]} 60... Bh4 {[%clk 0:00:02.5]} 61. Nb7 {[%clk 0:00:05.3]} 61... Kg7
{[%clk 0:00:03.1]} 62. Nxc5 {[%clk 0:00:04.7]} 62... dxc5 {[%clk 0:00:02.4]} 63.
Bxg6 {[%clk 0:00:05]} 63... Kxg6 {[%clk 0:00:03.1]} 64. Ke4 {[%clk 0:00:05.5]}
64... Kf6 {[%clk 0:00:03.4]} 0-1